fUSD/lending_fUSD_20240329
["ID","MTS","AMOUNT","RATE_DAILY","PERIOD"]
[320993583,1711732268492,-151.0,0.00053424,120]
[320993584,1711732268502,-352.20008364,0.00053424,120]
[320993585,1711732268512,-500.0,0.00053424,120]
[320993586,1711732268521,-500.0,0.00053424,120]
[320993587,1711732268531,-500.0,0.00053424,120]
[320993588,1711732268541,-546.22,0.00053424,120]
[320993589,1711732268551,-666.0,0.00053424,120]
[320993590,1711732268561,-500.0,0.00053424,120]
[320993591,1711732268572,-151.0,0.00053424,120]
[320993592,1711732268582,-507.49,0.00053424,120]
[320993593,1711732268591,-500.0,0.00053424,120]
[320993594,1711732268601,-500.0,0.00053424,120]
[320993595,1711732268610,-534.0,0.00053424,120]
[320993596,1711732268619,-155.807549,0.00053424,30]
[320993597,1711732268629,-151.0,0.00053424,120]
[320993598,1711732268638,-155.807549,0.00053424,30]
[320993599,1711732268647,-500.0,0.00053424,120]
[320993600,1711732268656,-500.0,0.00053424,120]
[320993601,1711732268665,-151.0,0.00053424,120]
[320993602,1711732268674,-500.0,0.00053424,120]
[320993603,1711732268683,-150.0,0.00053424,2]
[320993604,1711732268693,-500.0,0.00053424,120]
[320993605,1711732268702,-500.0,0.00053424,120]
[320993606,1711732268712,-151.0,0.00053424,120]
[320993607,1711732268722,-500.0,0.00053424,120]
[320993608,1711732268731,-151.0,0.00053424,120]
[320993609,1711732268741,-151.0,0.00053424,120]
[320993610,1711732268750,-500.0,0.00053424,120]
[320993611,1711732268760,-500.0,0.00053424,120]
[320993612,1711732268769,-500.0,0.00053424,120]
[320993613,1711732268778,-500.0,0.00053424,120]
[320993614,1711732268787,-500.0,0.00053424,120]
[320993615,1711732268796,-500.0,0.00053424,120]
[320993616,1711732268806,-500.0,0.00053424,120]
[320993617,1711732268815,-500.0,0.00053424,120]
[320993618,1711732268824,-500.0,0.00053424,120]
[320993619,1711732268833,-500.0,0.00053424,120]
[320993620,1711732268842,-500.0,0.00053424,120]
[320993621,1711732268851,-537.3971664,0.00053424,120]
[320993622,1711732268861,-500.0,0.00053424,120]
[320993623,1711732268874,-500.0,0.00053424,120]
[320993624,1711732268884,-500.0,0.00053424,120]
[320993625,1711732268894,-520.26,0.00053424,120]
[320993626,1711732268904,-515.266587,0.00053424,120]
[320993627,1711732268914,-151.0,0.00053424,120]
[320993628,1711732268923,-1906.05,0.00053424,120]
[320993629,1711732268933,-369.689172,0.00053424,120]
[320993630,1711732268942,-151.0,0.00053424,120]
[320993631,1711732268953,-515.266587,0.00053424,120]
[320993632,1711732268962,-369.689172,0.00053424,120]
[320993633,1711732268972,-500.0,0.00053424,120]
[320993634,1711732268982,-196.530734,0.00053424,120]
[320993635,1711732268991,-500.0,0.00053424,120]
[320993636,1711732269002,-151.0,0.00053424,7]
[320993637,1711732269011,-500.0,0.00053424,120]
[320993638,1711732269020,-500.0,0.00053424,120]
[320993639,1711732269031,-500.0,0.00053424,120]
[320993640,1711732269040,-317.01984,0.00053424,120]
[320993641,1711732269049,-317.01984,0.00053424,120]
[320993642,1711732269058,-500.0,0.00053424,120]
[320993643,1711732269067,-500.0,0.00053424,120]
[320993644,1711732269076,-220.711669,0.00053424,120]
[320993645,1711732269086,-500.0,0.00053424,120]
[320993646,1711732269095,-500.0,0.00053424,120]
[320993647,1711732269104,-542.86033106,0.00053424,120]
[320993648,1711732269113,-220.711669,0.00053424,120]
[320993649,1711732269122,-500.0,0.00053424,120]
[320993650,1711732269131,-500.0,0.00053424,120]
[320993651,1711732269140,-184.87,0.00053424,120]
[320993652,1711732269149,-500.0,0.00053424,2]
[320993653,1711732269158,-500.0,0.00053424,120]
[320993654,1711732269167,-500.0,0.00053424,2]
[320993655,1711732269176,-500.0,0.00053424,120]
[320993656,1711732269185,-500.0,0.00053424,120]
[320993657,1711732269194,-500.0,0.00053424,120]
[320993658,1711732269202,-500.0,0.00053424,120]
[320993659,1711732269212,-500.0,0.00053424,120]
[320993660,1711732269221,-684.29,0.00053424,120]
[320993661,1711732269230,-500.0,0.00053424,120]
[320993662,1711732269239,-500.0,0.00053424,120]
[320993663,1711732269248,-500.0,0.00053424,120]
[320993664,1711732269259,-539.83,0.00053424,120]
[320993665,1711732269267,-500.0,0.00053424,120]
[320993666,1711732269277,-500.0,0.00053424,120]
[320993667,1711732269286,-500.0,0.00053424,120]
[320993668,1711732269295,-500.0,0.00053424,120]
[320993669,1711732269304,-500.0,0.00053424,120]
[320993670,1711732269314,-500.0,0.00053424,120]
[320993671,1711732269323,-1706.14,0.00053424,120]
[320993672,1711732269332,-617.75434315,0.00053424,120]
[320993673,1711732269341,-959.73,0.00053424,120]
[320993674,1711732269350,-500.0,0.00053424,120]
[320993675,1711732269360,-500.0,0.00053424,120]
[320993676,1711732269369,-7887.7,0.00053424,120]
[320993677,1711732269378,-540.13,0.00053424,120]
[320993678,1711732269387,-500.0,0.00053424,120]
[320993679,1711732269396,-500.0,0.00053424,120]
[320993680,1711732269406,-1600.31,0.00053424,120]
[320993681,1711732269415,-868.17,0.00053424,120]
[320993682,1711732269425,-500.0,0.00053424,120]
[320993683,1711732269434,-583.92,0.00053424,120]
[320993684,1711732269443,-500.0,0.00053424,120]
[320993685,1711732269452,-500.0,0.00053424,120]
[320993686,1711732269461,-500.0,0.00053424,120]
[320993687,1711732269470,-500.0,0.00053424,120]
[320993688,1711732269479,-500.0,0.00053424,120]
[320993689,1711732269488,-500.0,0.00053424,120]
[320993690,1711732269498,-500.0,0.00053424,120]
[320993691,1711732269507,-666.09,0.00053424,120]
[320993692,1711732269517,-500.0,0.00053424,120]
[320993693,1711732269533,-2866.09,0.00053424,120]
[320993694,1711732269550,-501.42,0.00053424,120]
[320993695,1711732269559,-500.0,0.00053424,120]
[320993696,1711732269568,-695.15,0.00053424,120]
[320993697,1711732269577,-4227.5,0.00053424,120]
[320993698,1711732269587,-639.06,0.00053424,120]
[320993699,1711732269596,-5650.1,0.00053424,120]
[320993700,1711732269605,-16788.45,0.00053424,120]
[320993701,1711732269614,-500.0,0.00053424,120]
[320993702,1711732269623,-500.0,0.00053424,120]
[320993703,1711732269632,-500.0,0.00053424,120]
[320993704,1711732269642,-3741.11,0.00053424,120]
[320993705,1711732269652,-4021.4,0.00053424,120]
[320993706,1711732269661,-2018.41,0.00053424,120]
[320993707,1711732269670,-1018.15,0.00053424,120]
[320993708,1711732269679,-500.0,0.00053424,120]
[320993709,1711732269688,-156.55,0.00053424,120]
[320993710,1711732269698,-2719.17,0.00053424,120]
[320993711,1711732269709,-500.0,0.00053424,120]
[320993712,1711732269725,-500.0,0.00053424,120]
[320993713,1711732269734,-2275.1,0.00053424,120]
[320993714,1711732269743,-1055.56,0.00053424,120]
[320993715,1711732269753,-500.0,0.00053424,120]
[320993716,1711732269762,-3101.43,0.00053424,120]
[320993717,1711732269771,-500.0,0.00053424,120]
[320993718,1711732269781,-500.0,0.00053424,120]
[320993719,1711732269790,-3715.44,0.00053424,120]
[320993720,1711732269798,-500.0,0.00053424,120]
[320993721,1711732269807,-500.0,0.00053424,120]
[320993722,1711732269816,-500.0,0.00053424,120]
[320993723,1711732269825,-4247.9,0.00053424,120]
[320993724,1711732269834,-892.02,0.00053424,120]
[320993725,1711732269842,-1042.94,0.00053424,120]
[320993726,1711732269852,-500.0,0.00053424,120]
[320993727,1711732269862,-500.0,0.00053424,120]
[320993728,1711732269875,-1509.93,0.00053424,120]
[320993729,1711732269883,-830.5,0.00053424,120]
[320993730,1711732269893,-500.0,0.00053424,120]
[320993731,1711732269902,-1724.86,0.00053424,120]
[320993732,1711732269911,-613.02,0.00053424,120]
[320993733,1711732269920,-500.0,0.00053424,120]
[320993734,1711732269928,-905.36,0.00053424,120]
[320993735,1711732269937,-500.0,0.00053424,120]
[320993736,1711732269947,-623.53,0.00053424,120]
[320993737,1711732269956,-802.8,0.00053424,120]
[320993738,1711732269964,-543.31,0.00053424,120]
[320993739,1711732269973,-500.0,0.00053424,120]
[320993740,1711732269982,-1090.75,0.00053424,120]
[320993741,1711732269991,-746.52,0.00053424,120]
[320993742,1711732270001,-826.13,0.00053424,120]
[320993743,1711732270011,-500.0,0.00053424,120]
[320993744,1711732270019,-567.02,0.00053424,120]
[320993745,1711732270187,-500.0,0.00053424,120]
[320993746,1711732270197,-727.16,0.00053424,120]
[320993747,1711732270207,-524.42,0.00053424,120]
[320993748,1711732270217,-3533.95,0.00053424,120]
[320993749,1711732270226,-678.08,0.00053424,120]
[320993750,1711732270235,-1640.68,0.00053424,120]
[320993751,1711732270245,-599.54,0.00053424,120]
[320993752,1711732270254,-823.88,0.00053424,120]
[320993753,1711732270264,-746.65,0.00053424,120]
[320993754,1711732270274,-1247.6,0.00053424,120]
[320993755,1711732270283,-500.0,0.00053424,80]
[320993756,1711732270292,-2016.02,0.00053424,120]
[320993757,1711732270301,-1049.64,0.00053424,120]
[320993758,1711732270311,-500.0,0.00053424,120]
[320993759,1711732270320,-842.24,0.00053424,120]
[320993760,1711732270329,-2897.64,0.00053424,120]
[320993761,1711732270338,-637.97,0.00053424,120]
[320993762,1711732270347,-662.85,0.00053424,120]
[320993763,1711732270357,-500.0,0.00053424,120]
[320993764,1711732270366,-515.79,0.00053424,120]
[320993765,1711732270375,-290.35379009,0.00053424,120]
[320993766,1711732270384,-1329.88,0.00053424,120]
[320993767,1711732270394,-3024.4,0.00053424,120]
[320993768,1711732270403,-897.89,0.00053424,120]
[320993769,1711732270412,-1703.04,0.00053424,120]
[320993770,1711732270421,-500.0,0.00053424,120]
[320993771,1711732270431,-500.0,0.00053424,120]
[320993772,1711732270440,-2522.14,0.00053424,120]
[320993773,1711732270449,-500.0,0.00053424,120]
[320993774,1711732270458,-5409.47,0.00053424,120]
[320993775,1711732270467,-643.87,0.00053424,120]
[320993776,1711732270476,-1537.3,0.00053424,120]
[320993777,1711732270485,-500.0,0.00053424,120]
[320993778,1711732270495,-1064.6,0.00053424,120]
[320993779,1711732270504,-500.0,0.00053424,120]
[320993780,1711732270514,-532.63,0.00053424,120]
[320993781,1711732270523,-500.0,0.00053424,120]
[320993782,1711732270532,-1623.67,0.00053424,120]
[320993783,1711732270542,-694.49,0.00053424,120]
[320993784,1711732270550,-862.3,0.00053424,120]
[320993785,1711732270560,-3565.13,0.00053424,120]
[320993786,1711732270570,-500.0,0.00053424,60]
[320993787,1711732270579,-2312.51,0.00053424,120]
[320993788,1711732270588,-1378.2,0.00053424,120]
[320993789,1711732270598,-2825.19,0.00053424,120]
[320993790,1711732270606,-1908.96,0.00053424,120]
[320993791,1711732270616,-3067.75,0.00053424,120]
[320993792,1711732270625,-1505.23,0.00053424,120]
[320993793,1711732270634,-500.0,0.00053424,120]
[320993794,1711732270645,-693.2,0.00053424,120]
[320993795,1711732270655,-618.84,0.00053424,120]
[320993796,1711732270664,-500.0,0.00053424,120]
[320993797,1711732270674,-500.0,0.00053424,120]
[320993798,1711732270683,-500.0,0.00053424,120]
[320993799,1711732270692,-2231.03,0.00053424,120]
[320993800,1711732270701,-500.0,0.00053424,120]
[320993801,1711732270710,-7315.32,0.00053424,120]
[320993802,1711732270719,-1373.64,0.00053424,120]
[320993803,1711732270728,-3551.47,0.00053424,120]
[320993804,1711732270737,-2890.11,0.00053424,120]
[320993805,1711732270746,-1573.34,0.00053424,120]
[320993806,1711732270757,-500.0,0.00053424,120]
[320993807,1711732270766,-3514.04,0.00053424,120]
[320993808,1711732270775,-3001.64,0.00053424,120]
[320993809,1711732270785,-2751.01,0.00053424,120]
[320993810,1711732270794,-500.0,0.00053424,120]
[320993811,1711732270803,-9275.15,0.00053424,120]
[320993812,1711732270813,-173.98892939,0.00053424,120]
[320993813,1711732270823,-3751.45,0.00053424,120]
[320993814,1711732270833,-797.83,0.00053424,120]
[320993815,1711732270842,-706.51,0.00053424,120]
[320993816,1711732270852,-628.23561068,0.00053424,120]
[320993817,1711732271070,-1203.12,0.00053424,120]
[320993818,1711732271080,-2915.8,0.00053424,120]
[320993819,1711732271090,-11829.29,0.00053424,120]
[320993820,1711732271099,-702.44,0.00053424,120]
[320993821,1711732271109,-1475.36,0.00053424,120]
[320993822,1711732271118,-500.0,0.00053424,120]
[320993823,1711732271127,-500.0,0.00053424,120]
[320993824,1711732271137,-4876.82,0.00053424,120]
[320993825,1711732271146,-725.78,0.00053424,120]
[320993826,1711732271155,-1899.07,0.00053424,120]
[320993827,1711732271165,-4287.28,0.00053424,120]
[320993828,1711732271174,-651.91,0.00053424,120]
[320993829,1711732271183,-500.0,0.00053424,120]
[320993830,1711732271193,-500.0,0.00053424,120]
[320993831,1711732271202,-500.0,0.00053424,120]
[320993832,1711732271211,-500.0,0.00053424,120]
[320993833,1711732271223,-3462.31,0.00053424,120]
[320993834,1711732271232,-500.0,0.00053424,120]
[320993835,1711732271241,-500.0,0.00053424,120]
[320993836,1711732271250,-500.0,0.00053424,120]
[320993837,1711732271261,-531.84,0.00053424,120]
[320993838,1711732271270,-970.04,0.00053424,120]
[320993839,1711732271280,-500.0,0.00053424,120]
[320993840,1711732271289,-503.26,0.00053424,120]
[320993841,1711732271298,-546.78,0.00053424,120]
[320993842,1711732271307,-2146.07,0.00053424,120]
[320993843,1711732271316,-2298.97,0.00053424,120]
[320993844,1711732271326,-978.57,0.00053424,120]
[320993845,1711732271334,-3430.95,0.00053424,120]
[320993846,1711732271343,-500.0,0.00053424,120]
[320993847,1711732271352,-1165.91,0.00053424,120]
[320993848,1711732271362,-500.0,0.00053424,120]
[320993849,1711732271371,-4577.78,0.00053424,21]
[320993850,1711732271380,-500.0,0.00053424,2]
[320993851,1711732271389,-656.94,0.00053424,120]
[320993852,1711732271397,-180.8,0.00053425,120]
[320993853,1711732271406,-1000.0,0.00053448,120]
[320993854,1711732271415,-325.0,0.0005347,15]
[320993855,1711732271424,-262.0,0.0005347,15]
[320993856,1711732271433,-325.0,0.0005348,15]
[320993857,1711732271442,-262.0,0.0005348,15]
[320993858,1711732271451,-325.0,0.0005349,15]
[320993859,1711732271459,-262.0,0.0005349,15]
[320993860,1711732271468,-1000.0,0.00053494,120]
[320993861,1711732271478,-40124.30435578,0.00053527,2]
[320993862,1711732271487,-1000.0,0.00053541,120]
[320993863,1711732271496,-152.66585958,0.00053544,58]
[320993864,1711732271505,-5000.0,0.00053585,90]
[320993865,1711732271515,-1000.0,0.00053587,120]
[320993866,1711732271524,-1915.38981548,0.000536,120]
[320993867,1711732271533,-152.94,0.000536,7]
[320993868,1711732271542,-1000.0,0.00053634,120]
[320993869,1711732271551,-1000.0,0.0005368,120]
[320993870,1711732271561,-500.0,0.00053698,120]
[320993871,1711732271570,-500.0,0.00053698,120]
[320993872,1711732271579,-500.0,0.00053698,120]
[320993873,1711732271588,-500.0,0.00053698,120]
[320993874,1711732271597,-500.0,0.00053698,120]
[320993875,1711732271606,-500.0,0.00053698,120]
[320993876,1711732271615,-500.0,0.00053698,120]
[320993877,1711732271624,-500.0,0.00053698,120]
[320993878,1711732271633,-500.0,0.00053698,120]
[320993879,1711732271642,-500.0,0.00053698,120]
[320993880,1711732271651,-500.0,0.00053698,120]
[320993881,1711732271660,-500.0,0.00053698,120]
[320993882,1711732271670,-500.0,0.00053698,120]
[320993883,1711732271679,-500.0,0.00053698,120]
[320993884,1711732271689,-500.0,0.00053698,120]
[320993885,1711732271698,-500.0,0.00053698,120]
[320993886,1711732271707,-500.0,0.00053698,120]
[320993887,1711732271716,-500.0,0.00053698,120]
[320993888,1711732271726,-296.23738871,0.00053698,120]
[320993889,1711732271735,-500.0,0.00053698,120]
[320993890,1711732271745,-191.56242356,0.00053698,120]
[320993891,1711732271755,-500.0,0.00053698,120]
[320993892,1711732271764,-500.0,0.00053698,120]
[320993893,1711732271773,-500.0,0.00053698,120]
[320993894,1711732271782,-500.0,0.00053698,120]
[320993895,1711732271791,-557.74,0.00053698,120]
[320993896,1711732271800,-500.0,0.00053698,120]
[320993897,1711732271810,-500.0,0.00053698,120]
[320993898,1711732271820,-500.0,0.00053698,120]
[320993899,1711732271829,-500.0,0.00053698,120]
[320993900,1711732271838,-500.0,0.00053698,120]
[320993901,1711732271847,-671.55,0.00053698,120]
[320993902,1711732271858,-500.0,0.00053698,120]
[320993903,1711732271868,-500.0,0.00053698,120]
[320993904,1711732271878,-500.0,0.00053698,120]
[320993905,1711732271888,-997.84,0.00053698,120]
[320993906,1711732271898,-500.0,0.00053698,120]
[320993907,1711732271907,-500.0,0.00053698,120]
[320993908,1711732271917,-533.61,0.00053698,120]
[320993909,1711732271927,-500.0,0.00053698,120]
[320993910,1711732271936,-500.0,0.00053698,120]
[320993911,1711732271947,-488.14,0.00053698,120]
[320993912,1711732271956,-500.0,0.00053698,120]
[320993913,1711732271968,-500.0,0.00053698,120]
[320993914,1711732271977,-500.0,0.00053698,120]
[320993915,1711732271987,-500.0,0.00053698,120]
[320993916,1711732271996,-500.0,0.00053698,120]
[320993917,1711732272006,-500.0,0.00053698,120]
[320993918,1711732272015,-500.0,0.00053698,120]
[320993919,1711732272025,-665.65,0.00053698,120]
[320993920,1711732272035,-500.0,0.00053698,120]
[320993921,1711732272045,-500.0,0.00053698,120]
[320993922,1711732272054,-500.0,0.00053698,120]
[320993923,1711732272064,-546.22,0.00053698,120]
[320993924,1711732272073,-222.0,0.00053698,120]
[320993925,1711732272083,-500.0,0.00053698,120]
[320993926,1711732272092,-500.0,0.00053698,120]
[320993927,1711732272103,-507.49,0.00053698,120]
[320993928,1711732272113,-500.0,0.00053698,120]
[320993929,1711732272122,-534.0,0.00053698,120]
[320993930,1711732272132,-500.0,0.00053698,120]
[320993931,1711732272141,-500.0,0.00053698,120]
[320993932,1711732272151,-500.0,0.00053698,120]
[320993933,1711732272161,-500.0,0.00053698,120]
[320993934,1711732272171,-500.0,0.00053698,120]
[320993935,1711732272181,-500.0,0.00053698,120]
[320993936,1711732272189,-500.0,0.00053698,120]
[320993937,1711732272198,-500.0,0.00053698,120]
[320993938,1711732272208,-500.0,0.00053698,120]
[320993939,1711732272217,-500.0,0.00053698,120]
[320993940,1711732272226,-500.0,0.00053698,120]
[320993941,1711732272236,-500.0,0.00053698,120]
[320993942,1711732272246,-500.0,0.00053698,120]
[320993943,1711732272255,-500.0,0.00053698,120]
[320993944,1711732272265,-500.0,0.00053698,120]
[320993945,1711732272274,-500.0,0.00053698,120]
[320993946,1711732272283,-500.0,0.00053698,120]
[320993947,1711732272293,-500.0,0.00053698,120]
[320993948,1711732272302,-500.0,0.00053698,120]
[320993949,1711732272311,-520.26,0.00053698,120]
[320993950,1711732272321,-1906.05,0.00053698,120]
[320993951,1711732272330,-529.65202197,0.00053698,120]
[320993952,1711732272339,-500.0,0.00053698,120]
[320993953,1711732272348,-500.0,0.00053698,120]
[320993954,1711732272357,-500.0,0.00053698,120]
[320993955,1711732272366,-500.0,0.00053698,120]
[320993956,1711732272375,-500.0,0.00053698,120]
[320993957,1711732272385,-451.61019769,0.00053698,120]
[320993958,1711732272394,-500.0,0.00053698,120]
[320993959,1711732272403,-500.0,0.00053698,120]
[320993960,1711732272413,-357.55280962,0.00053698,120]
[320993961,1711732272422,-500.0,0.00053698,120]
[320993962,1711732272432,-184.87,0.00053698,120]
[320993963,1711732272441,-500.0,0.00053698,2]
[320993964,1711732272450,-500.0,0.00053698,120]
[320993965,1711732272460,-500.0,0.00053698,2]
[320993966,1711732272469,-500.0,0.00053698,120]
[320993967,1711732272478,-500.0,0.00053698,120]
[320993968,1711732272487,-500.0,0.00053698,120]
[320993969,1711732272496,-500.0,0.00053698,120]
[320993970,1711732272506,-500.0,0.00053698,120]
[320993971,1711732272515,-684.29,0.00053698,120]
[320993972,1711732272524,-500.0,0.00053698,120]
[320993973,1711732272533,-500.0,0.00053698,120]
[320993974,1711732272542,-500.0,0.00053698,120]
[320993975,1711732272552,-539.83,0.00053698,120]
[320993976,1711732272562,-500.0,0.00053698,120]
[320993977,1711732272571,-500.0,0.00053698,120]
[320993978,1711732272580,-500.0,0.00053698,120]
[320993979,1711732272590,-500.0,0.00053698,120]
[320993980,1711732272599,-500.0,0.00053698,120]
[320993981,1711732272608,-500.0,0.00053698,120]
[320993982,1711732272618,-1706.14,0.00053698,120]
[320993983,1711732272627,-959.73,0.00053698,120]
[320993984,1711732272637,-500.0,0.00053698,120]
[320993985,1711732272647,-500.0,0.00053698,120]
[320993986,1711732272656,-7887.7,0.00053698,120]
[320993987,1711732272665,-540.13,0.00053698,120]
[320993988,1711732272677,-500.0,0.00053698,120]
[320993989,1711732272687,-500.0,0.00053698,120]
[320993990,1711732272696,-1600.31,0.00053698,120]
[320993991,1711732272707,-868.17,0.00053698,120]
[320993992,1711732272717,-500.0,0.00053698,120]
[320993993,1711732272726,-583.92,0.00053698,120]
[320993994,1711732272736,-500.0,0.00053698,120]
[320993995,1711732272745,-500.0,0.00053698,120]
[320993996,1711732272756,-168.97,0.00053698,120]
[320993997,1711732272766,-500.0,0.00053698,120]
[320993998,1711732272776,-500.0,0.00053698,120]
[320993999,1711732272785,-500.0,0.00053698,120]
[320994000,1711732272796,-500.0,0.00053698,120]
[320994001,1711732272805,-666.09,0.00053698,120]
[320994002,1711732272816,-500.0,0.00053698,120]
[320994003,1711732272825,-2866.09,0.00053698,120]
[320994004,1711732272835,-501.42,0.00053698,120]
[320994005,1711732272844,-500.0,0.00053698,120]
[320994006,1711732272854,-695.15,0.00053698,120]
[320994007,1711732272863,-4227.5,0.00053698,120]
[320994008,1711732272875,-639.06,0.00053698,120]
[320994009,1711732272884,-5650.1,0.00053698,120]
[320994010,1711732272894,-16788.45,0.00053698,120]
[320994011,1711732272904,-500.0,0.00053698,120]
[320994012,1711732272914,-500.0,0.00053698,120]
[320994013,1711732272924,-500.0,0.00053698,120]
[320994014,1711732272934,-3741.11,0.00053698,120]
[320994015,1711732272943,-4021.4,0.00053698,120]
[320994016,1711732272955,-2018.41,0.00053698,120]
[320994017,1711732272965,-1018.15,0.00053698,120]
[320994018,1711732272975,-500.0,0.00053698,120]
[320994019,1711732272984,-2719.17,0.00053698,120]
[320994020,1711732272994,-500.0,0.00053698,120]
[320994021,1711732273003,-500.0,0.00053698,120]
[320994022,1711732273013,-2275.1,0.00053698,120]
[320994023,1711732273022,-1055.56,0.00053698,120]
[320994024,1711732273031,-500.0,0.00053698,120]
[320994025,1711732273040,-3101.43,0.00053698,120]
[320994026,1711732273050,-500.0,0.00053698,120]
[320994027,1711732273059,-500.0,0.00053698,120]
[320994028,1711732273068,-3715.44,0.00053698,120]
[320994029,1711732273078,-500.0,0.00053698,120]
[320994030,1711732273088,-500.0,0.00053698,120]
[320994031,1711732273098,-500.0,0.00053698,120]
[320994032,1711732273107,-4247.9,0.00053698,120]
[320994033,1711732273116,-892.02,0.00053698,120]
[320994034,1711732273125,-1042.94,0.00053698,120]
[320994035,1711732273135,-500.0,0.00053698,120]
[320994036,1711732273144,-500.0,0.00053698,120]
[320994037,1711732273153,-1509.93,0.00053698,120]
[320994038,1711732273163,-830.5,0.00053698,120]
[320994039,1711732273172,-500.0,0.00053698,120]
[320994040,1711732273181,-1724.86,0.00053698,120]
[320994041,1711732273190,-613.02,0.00053698,120]
[320994042,1711732273200,-500.0,0.00053698,120]
[320994043,1711732273210,-905.36,0.00053698,120]
[320994044,1711732273219,-500.0,0.00053698,120]
[320994045,1711732273229,-623.53,0.00053698,120]
[320994046,1711732273239,-802.8,0.00053698,120]
[320994047,1711732273249,-543.31,0.00053698,120]
[320994048,1711732273260,-500.0,0.00053698,120]
[320994049,1711732273270,-1090.75,0.00053698,120]
[320994050,1711732273280,-746.52,0.00053698,120]
[320994051,1711732273290,-826.13,0.00053698,120]
[320994052,1711732273300,-500.0,0.00053698,120]
[320994053,1711732273309,-567.02,0.00053698,120]
[320994054,1711732273319,-500.0,0.00053698,120]
[320994055,1711732273329,-727.16,0.00053698,120]
[320994056,1711732273338,-524.42,0.00053698,120]
[320994057,1711732273347,-3533.95,0.00053698,120]
[320994058,1711732273357,-678.08,0.00053698,120]
[320994059,1711732273366,-1640.68,0.00053698,120]
[320994060,1711732273375,-599.54,0.00053698,120]
[320994061,1711732273384,-823.88,0.00053698,120]
[320994062,1711732273393,-746.65,0.00053698,120]
[320994063,1711732273403,-1247.6,0.00053698,120]
[320994064,1711732273412,-500.0,0.00053698,80]
[320994065,1711732273421,-2016.02,0.00053698,120]
[320994066,1711732273430,-1049.64,0.00053698,120]
[320994067,1711732273440,-511.31544029,0.00053698,120]
[320994068,1711732273449,-842.24,0.00053698,120]
[320994069,1711732273458,-2897.64,0.00053698,120]
[320994070,1711732273468,-637.97,0.00053698,120]
[320994071,1711732273477,-662.85,0.00053698,120]
[320994072,1711732273486,-500.0,0.00053698,120]
[320994073,1711732273495,-515.79,0.00053698,120]
[320994074,1711732273505,-1329.88,0.00053698,120]
[320994075,1711732273515,-3024.4,0.00053698,120]
[320994076,1711732273524,-897.89,0.00053698,120]
[320994077,1711732273533,-1703.04,0.00053698,120]
[320994078,1711732273542,-500.0,0.00053698,120]
[320994079,1711732273552,-649.05693415,0.00053698,120]
[320994080,1711732273560,-2522.14,0.00053698,120]
[320994081,1711732273721,-500.0,0.00053698,120]
[320994082,1711732273731,-5409.47,0.00053698,120]